Workbook

Sheet A
M3: Travel Expenses Claim from 22.06.2018
H4: Last name and First name | S4: National Norwegian ID no. (if applicable) | V4: Employee number (if applicable)
H5: Home address | Q5: Postal code | S5: City
H6: Position | Q6: Bank account
H7: Organization/Institution | AA7: Test på dato
H8: Type of travel | R8: Region | T8: Date | U8: Time | W8: =IF(AND(AC28=1,AC34=10),"Har ikke krav på komp.tillegg",IF(AND(AC28>1,AC35=20),"Antall komp.till. er for høyt","")) ->  | AA8: =IF(AND(T9<>"",T10<>""),-1,1) -> 1 | AB8: Verdien 1 dersom fra og tildato er tomme
H9: Destination | S9: Departure | V9: No of days | W9: =IF(AA18<0,"The number of days for which subsist. all. is claimed is too high","") ->  | AA9: =IF(OR($T$9<42005,$T$9>42369),0,1) -> 0 | AB9: hvis 1 er utreise dato dato innen 2015
H10: Purpose of trip | S10: Return | V10: =IF(AA8=1,0,IF(T9>T10,"Sjekk dato",T10-T9+AA15)) -> 0 | W10: =IF(AA8<>1,IF(AND(AA11<2,AA11>0),"Satser for reise er fra 2015",""),"") ->  | AA10: =IF(OR($T$10<42005,$T$10>42369),0,1) -> 0 | AB10: hvis 1 er returreise innen 2015
H11: Travel expenses/compensation | Q11: Number | R11: Rate | S11: Amount | T11: Account | U11: Cost center | V11: K-elem.4 | W11: K-elem.5 | X11: K-elem.6 | Y11: K-elem.7 | AA11: =SUM(AA9:AA10) -> 0 | AB11: hvis 2 er utreise og retur innen 2015
K12: 1041 | L12: Transferred from reverse | S12: =IF(B!M39=0,0,B!M39) -> 0
H13: Subsistence allowance, no overnight stay | K13: 1048/1085 | L13: Domestic | R13: =IF(AND(Q13<>0,M13<>""),VLOOKUP(M13,'C'!C8:F10,4),"") ->  | S13: =IF(AND(Q13<>0,M13<>""),+Q13*R13,0) -> 0 | AA13: Beregner kostdøgn | AB13: =T10-T9 -> 0 | AC13: 1
K14: 1042 | L14: Abroad. 6-12 timer | R14: =IF(M14<>0,((VLOOKUP(M14,'C'!$B$55:$E$221,4,FALSE))*0.5),"") ->  | S14: =IF(M14<>0,+Q14*R14,0) -> 0 | AA14: =IF(AB13>0,(U10-U9)*24,0) -> 0 | AB14: Antall timer inn i nytt døgn
K15: 1052 | L15: Abroad > 12 timer | R15: =IF(M15<>0,((VLOOKUP(M15,'C'!$B$55:$E$221,4,FALSE))),"") ->  | S15: =IF(M15<>0,+Q15*R15,0) -> 0 | AA15: =IF($AA$14>=6,1,0) -> 0 | AB15: Hvis 6 timer inn i nytt døgn, beregnes nytt kostdøgn
H16: Subsistence allowance, overnight stay | K16: 1087/1075 | L16: Hotell innland | M16: =IF($Q$16>0,'C'!G48*$Q16+Q42,"") ->  | N16: =IF($Q16>0,(('C'!$F$12-'C'!$G48)*$Q16)+R42,"") ->  | R16: =IF(Q16<>0,'C'!$F$12,"") ->  | S16: =IF(Q16<>0,+Q16*R16,0) -> 0 | AA16: =V10 -> 0 | AB16: Max. Beregnede kost døgn
K17: 1076/1075 | L17: B&B/Inn domestic * | M17: =IF($Q$17>0,'C'!F15*$Q17+Q43,"") ->  | N17: =IF($Q17>0,(('C'!$F$12-'C'!$F$15)*$Q17)+R43,"") ->  | R17: =IF(Q17<>0,'C'!F12,"") ->  | S17: 0 | AA17: =SUM(Q13:Q22) -> 0 | AB17: sum oppgitte kostdøgn
K18: 1073/1075 | L18: Bedsit/AirBnB/ priv domestic* | M18: =IF($Q$18>0,('C'!F16*$Q18)+Q44,"") ->  | N18: =IF($Q18>0,(('C'!$F$12-'C'!$F$16)*$Q18)+R44,"") ->  | R18: =IF(Q18<>0,'C'!F12,"") ->  | S18: 0 | AA18: =IF(Q13=1,0,AA16-AA17) -> 0 | AB18: Hvis negativt tall, Oppgitt for mange kostdøgn, skriver feilmelding
K19: 1052 | L19: Hotel abroad | R19: =IF(M19<>0,VLOOKUP(M19,'C'!$B$55:$E$221,4,FALSE),"") ->  | S19: 0 | AA19: =IF($AA$14>=12,1,0) -> 0 | AB19: Hvis 12 timer inn i nytt døgn, beregnes nytt kostdøgn for kompetansetillegg
K20: 1052 | L20: Hotel abroad | R20: =IF(M20<>0,VLOOKUP(M20,'C'!$B$55:$E$221,4,FALSE),"") ->  | S20: 0 | AA20: Hvis reisen varer mindre enn et døgn utbetales kompensasjonstillegg etter 12 timer
H21: =IF(Q21>0,159*Q21,0)-Q43 -> 0 | I21: =IF(Q21>0,S21-H21,0) -> 0 | K21: 1076/1075 | L21: B&B/Inn abroad * | R21: =IF(M21<>0,VLOOKUP(M21,'C'!$B$55:$E$221,4,FALSE),"") ->  | S21: 0 | AA21: Komp. Tillegg < 1 døgn | AC21: kommentar | AD21: Hvis 12 timer inn i nytt døgn, får en nytt kompensasjonstilleggsdøgn ved reise under 12 timer
H22: =IF(Q22>0,88*Q22,0) -> 0 | I22: =IF(Q22>0,S22-H22,0) -> 0 | K22: 1073/1075 | L22: Bedsit/AirBnB/priv abroad* | R22: =IF(M22<>0,VLOOKUP(M22,'C'!$B$55:$E$221,4,FALSE),"") ->  | S22: 0 | AA22: =T9 -> 00:00:00 | AB22: Startdato | AC22: =IF(AND(AC28=1,AC27>=12),1,0) -> 0 | AD22: Reisen varer under et døgn, men mer enn 12 timer = 1 (0 dersom mindre enn 12 timer)
L23: Innland: utgår fom 2015 | R23: =IF(Q23<>0,'C'!F6,"") ->  | S23: 0 | AC23: =IF(AND(#REF!=1,AC28>=12),1,0) -> 
H24: Night supplement | K24: =+'C'!A17 -> 1053 | L24: Domestic | R24: =IF(Q24<>0,'C'!F17,"") ->  | S24: 0 | AA24: =$U$9*24 -> 0 | AB24: start tidspunkt | AC24: =AA25-AA24 -> 0 | AD24: Antall timer mellom start-tidspukt og slutt-tidspunkt
H25: Additional compensation | K25: =+'C'!A13 -> 1214 | L25: Abroad* | N25: =IF(Q25>0,IF(AC28=1,AC22,AC32),"") ->  | R25: =IF(Q25<>0,'C'!F13,"") ->  | S25: 0 | AA25: =$U$10*24 -> 0 | AB25: slutttidspunkt
H26: Use of own means of transport. Please specify the journey on the reverse side. | K26: ='C'!A28 -> 1094/1096 | L26: Car <10.000 km | M26: ='C'!C28*Q26 -> 0 | N26: ='C'!D28*Q26 -> 0 | R26: ='C'!F28 -> 3.9 | S26: =IF(Q26<>0,Q26*R26,0) -> 0
K27: 1202/1206 | L27: Car abroad <10.000 km | M27: ='C'!C30*Q27 -> 0 | N27: ='C'!D30*Q27 -> 0 | R27: ='C'!F30 -> 3.9 | S27: =IF(Q27<>0,Q27*R27,0) -> 0 | AA27: =IF(AC27>=12,"Ja","Nei") -> Nei | AB27: sum | AC27: =SUM(AC24:AC25) -> 0 | AD27: mer enn 12 timer totalt?
K28: ='C'!A32 -> 1093/1095 | L28: EL-car <10.000 km | M28: ='C'!C32*Q28 -> 0 | N28: ='C'!D32*Q28 -> 0 | R28: ='C'!F32 -> 3.9 | S28: 0 | AB28: reisen varer antall døgn : | AC28: =$T$10-$T$9 -> 0
K29: 1203/1225 | L29: EL-car abroad <10.000 km | M29: ='C'!C34*Q29 -> 0 | N29: ='C'!D34*Q29 -> 0 | R29: ='C'!F34 -> 3.9 | S29: 0 | AB29: sum reg. døgn utland : | AC29: =SUM(Q19:Q22) -> 0 | AD29: Hvis reisen over et døgn utbetales kompensasjonstillegg etter 12 timer inn i nytt døgn
K30: ='C'!A27 -> 1045 | L30: Passengers suppl.(name of passanger(s) should be entered in the remarks box) | R30: =IF(Q30<>0,'C'!F27,"") ->  | S30: 0 | AB30: Registrerte komp. Tillegg | AC30: =Q25 -> 0
R31: =IF(Q31>0,'C'!F27,"") ->  | S31: 0 | AB31: Beregnet komp.till under et døgn | AC31: =AC22 -> 0 | AD31: =IF(Q25>AC31,"Bruker har ikke krav på komp.tillegg for reise under 1 døgn") -> FALSE
K32: =IF(AND(M32<>"",Q32<>""),VLOOKUP(M32,B!$E$71:$P$79,6,FALSE)) -> FALSE | L32: Other | R32: =IF(AND(M32<>"",Q32<>0),VLOOKUP(M32,B!$E$71:$I$79,2,FALSE),"") ->  | S32: 0 | AB32: Beregnet komp.till over et døgn | AC32: =IF(AC29<=$V$10,(AC29-1)+AA19,0) -> -1 | AD32: =IF(AC32=0,"Bruker har registrert for mange døgn utland enn startdato/sluttdato for reise tilsier","ok") -> ok | AE32: DENNE MÅ SJEKKES - BLIR FEIL HVIS BRUKER OPPGIR FEILE DØGN
B33: sjekk at denne tabellen fungerer | H33: Stay exceeding 28 days | K33: 1269 | L33: Subsistence allowance domestic | R33: =IF(Q33<>0,'C'!$F$12*0.75,"") ->  | S33: 0
K34: 1058 | L34: Subsistence allowance abroad | R34: =IF(M34<>0,VLOOKUP(M34,'C'!$B$55:$E$221,4,FALSE)*0.75,"") ->  | S34: =IF(M34<>0,+Q34*R34,0) -> 0 | AB34: Feilmelding komp tillegg under et døgn : | AC34: =IF($Q$25>0,IF(AC22>=1,0,10)) -> FALSE | AD34: =IF(AC34=10, "Feil - 10 Bruker har registrert komp tillegg men har ikke krav på under 1 døgn","") -> 
B35: Fratrekk for kost - satser | R35: =IF(Q35<>0,'C'!F17*0.75,"") ->  | S35: 0 | AB35: Feilmelding komp tillegg over et døgn : | AC35: =IF(AND($Q$25>0,$AC$29>=1),IF(AC32-Q25<0,20,0)) -> FALSE | AD35: =IF(AC35=20, "Feil 20 - Bruker har registrert komp tillegg men har registrert flere enn han har krav på","") -> 
B36: % utland | C36: 0.2 | D36: 0.3 | E36: 0.5 | H36: Other compensation | S36: 0
B37: % Innland | C37: 0.2 | D37: 0.3 | E37: 0.5 | H37: Total | R37: =SUM($S$43:$S$44,$S$47:$S$48) -> 0 | S37: =IF(SUM(S12:S36)<>0,SUM(S12:S36),0) -> 0
B38: Sats | C38: Frokost | D38: Lunch | E38: Middag | F38: Sum | H38: Deduction for meals | L38: Breakfast | M38: Lunch | N38: Dinner | Q38: Tax-free | R38: Taxable
A39: =L13 -> Domestic | B39: =IF(AND($Q$13>0,$M$13<>""),VLOOKUP($M$13,'C'!$C$8:$F$9,4),0) -> 0 | C39: =ROUND(IF(AND(B39<>0,L39>0),($C$37*754)*L39,0),0) -> 0 | D39: =ROUND(IF(M39>0,(754*D37),0),0) -> 0 | E39: =IF(N39>0,(754*E37),0) -> 0 | F39: =IF(SUM(C39:E39)>B39,B39,SUM(C39:E39)) -> 0 | H39: No overnight stay | K39: 1048/1085 | S39: =-F39 -> 0
A40: =L14 -> Abroad. 6-12 timer | B40: =IF(AND($Q$14<>0,$M$14<>""),VLOOKUP(M14,'C'!$B$55:$E$221,4,FALSE)*0.5,0) -> 0 | C40: =IF(L40>0,($B40*C$36)*2,0) -> 0 | D40: =IF(M40>0,($B40*D$36)*2,0) -> 0 | E40: =IF(N40>0,($B40*E$36)*2,0) -> 0 | F40: =SUM(C40:E40) -> 0 | H40: Abroad 6-12 timer | K40: 1042 | S40: 0
A41: Abroad > 12 timer | B41: =IF(AND($Q$15<>0,$M$15<>""),VLOOKUP(M15,'C'!$B$55:$E$221,4,FALSE),0) -> 0 | C41: =IF(L41>0,($B41*C$36),0) -> 0 | D41: 0 | E41: 0 | F41: =SUM(C41:E41) -> 0 | H41: Abroad > 12 timer | K41: 1052 | S41: =-F41 -> 0
A42: Hotell innland | B42: =IF(Q16<>"",'C'!$F$12,0) -> 0 | C42: =(IF(AND(L42>0,$B42<>0),($B42*C$37)*L42,0)) -> 0 | D42: =IF(AND(M42>0,$B42<>0),($B42*D$37)*M42,0) -> 0 | E42: =IF(AND(N42>0,$B42<>""),($B42*E$37)*N42,0) -> 0 | F42: =SUM(C42:E42) -> 0 | H42: Hotel domestic | K42: 1087 | Q42: =$S42*Q80 -> 0 | R42: =$S42*R80 -> 0 | S42: 0
A43: B&B/Inn domestic * | B43: =IF(Q17<>"",'C'!$F$12,0) -> 0 | C43: =(IF(AND(L43>0,$B43<>0),($B43*C$37)*L43,0)) -> 0 | D43: =IF(AND(M43>0,$B43<>0),($B43*D$37)*M43,0) -> 0 | E43: =IF(AND(N43>0,$B43<>""),($B43*E$37)*N43,0) -> 0 | F43: =SUM(C43:E43) -> 0 | H43: B&B/Inn domestic* | K43: 1076/1075 | Q43: =$S43*Q70 -> 0 | R43: =$S43*R70 -> 0 | S43: 0
A44: Bedsit/AirBnB/ priv domestic* | B44: =IF(Q18<>"",'C'!$F$12,0) -> 0 | C44: =(IF(AND(L44>0,$B44<>0),($B44*C$37)*L44,0)) -> 0 | D44: =IF(AND(M44>0,$B44<>0),($B44*D$37)*M44,0) -> 0 | E44: =IF(AND(N44>0,$B44<>""),($B44*E$37)*N44,0) -> 0 | F44: 0 | H44: Bedsit/AirBnB/priv. domestic* | K44: 1073/1075 | Q44: =$S44*Q71 -> 0 | R44: =$S44*R71 -> 0 | S44: 0
A45: Hotel abroad | B45: =IF(AND($Q$19<>0,$M$19<>""),VLOOKUP(M19,'C'!$B$55:$E$221,4,FALSE),0) -> 0 | C45: =IF(AND(L45>0,C$36<>""),($B45*C$36)*L45,0) -> 0 | D45: =IF(AND(M45>0,D$36<>""),($B45*D$36)*M45,0) -> 0 | E45: =IF(AND(N45>0,E$36<>""),($B45*E$36)*N45,0) -> 0 | F45: =SUM(C45:E45) -> 0 | H45: Hotel abroad | K45: 1052 | S45: 0
A46: Hotel abroad | B46: =IF(AND($Q$20<>0,$M$20<>""),VLOOKUP(M20,'C'!$B$55:$E$221,4,FALSE),0) -> 0 | C46: =IF(AND(L46>0,C$36<>""),($B46*C$36)*L46,0) -> 0 | D46: =IF(AND(M46>0,D$36<>""),($B46*D$36)*M46,0) -> 0 | E46: =IF(AND(N46>0,E$36<>""),($B46*E$36)*N46,0) -> 0 | F46: =SUM(C46:E46) -> 0 | H46: Hotel abroad | K46: 1052 | S46: =-F46 -> 0
A47: B&B/Inn abroad * | B47: =IF(AND($Q$21<>0,$M$21<>""),VLOOKUP(M21,'C'!$B$55:$E$221,4,FALSE),0) -> 0 | C47: =IF(AND(L47>0,C$36<>0),($B47*C$36)*L47,0) -> 0 | D47: 0 | E47: 0 | F47: 0 | H47: B&B/Inn abroad* | K47: 1076/1075 | Q47: =IF(S47<>0,$S47*Q78,"") ->  | R47: =IF(S47<>0,$S47*R78,"") ->  | S47: 0
A48: Bedsit/AirBnB/priv abroad* | B48: =IF(AND($Q$22<>0,$M$22<>""),VLOOKUP(M22,'C'!$B$55:$E$221,4,FALSE),0) -> 0 | C48: 0 | D48: 0 | E48: 0 | F48: 0 | H48: Bedsit/AirBnB/priv. abroad* | K48: 1073/1075 | Q48: =IF(S48<>0,$S48*Q79,"") ->  | R48: =IF(S48<>0,$S48*R79,"") ->  | S48: 0
B49: =IF(Q23<>"",'C'!$F$12,0) -> 0 | C49: =IF(AND(L49>0,$B49<>""),($B49*C$37)*L49,0) -> 0 | D49: =IF(AND(M49>0,$B49<>""),($B49*D$37)*M49,0) -> 0 | E49: =IF(AND(N49>0,$B49<>""),($B49*E$37)*N49,0) -> 0 | F49: 0 | H49: Total travel expenses | L49: =SUM(L39:L48) -> 0 | M49: =SUM(M39:M48) -> 0 | N49: 0 | O49: 0 | P49: 0 | S49: =IF(SUM(S37:S48)<>0,SUM(S37:S48),0) -> 0
H50: Other deductions
H51: Travel advance
H52: TOTAL (tax deductable amounts are marked with *) | S52: =IF(SUM(S49:S51)<>0,SUM(S49:S51),0) -> 0
H53: Claimant's signature | M53: I, the undersigned, agree that any amount due may be deducted from my salary. | V53: The rates and calculations are only included to give an estimate of the expected payment. The actual rates and calculations in the payroll system will be used when paying the travel expenses. The amount due may be smaller due to tax withholding.
H55: Attested | L55: Date | M55: Sign.
H57: Authorized | L57: Date | M57: Sign.
X59: 2016-01-01
I62: REGION | L62: ULEGITIMERT | U62: ANDRE FREMKOMSTMIDLER | Y62: REGULATIV
L63: KOSTGODTGJØRELSE | Y63: Tjenestereise
I64: Tromsø | L64: MED OVERNATTING | W64: ='C'!F39 -> 4 | Y64: Yrkesreise
W65: ='C'!#REF! ->  | Y65: Arbeidsreise
L66: 6-12 hours | N66: 8 - 12 timer | R66: SAP | W66: ='C'!F43 -> 2
L67: over 12 hours | N67: over 12 timer | W67: ='C'!F45 -> 1.7
W68: ='C'!#REF! -> 
K69: ='C'!F12 -> 754 | L69: Kostgodtjørelse | M69: Skattefri | N69: Skattepliktig | Q69: % skattefri | R69: % skpliktig | S69: Total | W69: ='C'!F50 -> 0
K70: =SUM(M70:N70) -> 754 | L70: =L17 -> B&B/Inn domestic * | M70: ='C'!F15 -> 159 | N70: =$K$69-M70 -> 595 | Q70: =M70/K70 -> 0.2108753316 | R70: =N70/K70 -> 0.7891246684 | S70: =SUM(Q70:R70) -> 1 | W70: ='C'!F51 -> 0
K71: =SUM(M71:N71) -> 754 | L71: =L18 -> Bedsit/AirBnB/ priv domestic* | M71: ='C'!F16 -> 88 | N71: =$K$69-M71 -> 666 | Q71: =M71/K71 -> 0.1167108753 | R71: =N71/K71 -> 0.8832891247 | S71: =SUM(Q71:R71) -> 1 | W71: ='C'!F52 -> 0
K72: 0.2 | L72: Frokost pensjonat | M72: =$M$70*K72 -> 31.8 | N72: =$N$70*K72 -> 119 | Q72: =SUM(M72:P72) -> 150.8 | W72: ='C'!F53 -> 0
K73: 0.3 | L73: Lunch pensjonat | M73: =$M$70*K73 -> 47.7 | N73: =$N$70*K73 -> 178.5 | Q73: =SUM(M73:P73) -> 226.2
K74: 0.5 | L74: Middag pensjonat | M74: 79.5 | N74: 297.5 | Q74: 377 | R74: =SUM(Q72:Q74) -> 754
K75: 0.2 | L75: Frokost brakke | M75: =$M$71*K75 -> 17.6 | N75: =$N$71*K75 -> 133.2 | Q75: 150.8 | W75: ='C'!F56 -> 0
K76: 0.3 | L76: Lunch brakke | M76: =$M$71*K76 -> 26.4 | N76: =$N$71*K76 -> 199.8 | Q76: 226.2
K77: 0.5 | L77: Middag brakke | M77: 44 | N77: 333 | Q77: 377 | R77: =SUM(Q75:Q77) -> 754
K78: =R21 ->  | L78: =L21 -> B&B/Inn abroad * | M78: =M70 -> 159 | N78: =IF(K78="","",K78-M78) ->  | Q78: =IF(K78="","",M78/K78) ->  | R78: =IF(K78="","",N78/K78) ->  | S78: =SUM(Q78:R78) -> 0
K79: =R22 ->  | L79: =L22 -> Bedsit/AirBnB/priv abroad* | M79: =M71 -> 88 | N79: =IF(K79="","",K79-M79) ->  | Q79: =IF(K79="","",M79/K79) ->  | R79: =IF(K79="","",N79/K79) ->  | S79: =SUM(Q79:R79) -> 0
K80: 754 | L80: Hotell | M80: ='C'!G48 -> 569 | N80: =+K80-M80 -> 185 | Q80: =+M80/K80 -> 0.7546419098 | R80: =+N80/K80 -> 0.2453580902

Sheet B
A2: Journey specifications | J2: Expenses
A3: Date | B3: Time | C3: From | E3: To | F3: Time | G3: Means of transport | I3: Km | J3: Currency | K3: Amount | L3: Exchange rate | M3: Amount | N3: Comments | P3: Sats | Q3: Skatte-fritt | R3: Skatte-pliktig | S3: Km | T3: Sum km godtgj. | U3: Kontr | V3: Km
M4: =IF(P4>0,T4,IF(AND(K4<>0,L4<>0),K4*L4,K4)) -> 0 | N4: =IF(AND(U4>4,I4=""),"Enter number of km","") ->  | P4: =IF(G4="",0,VLOOKUP($G4,$E$62:$F$79,2,FALSE)) -> 0 | Q4: =IF(H4="",0,VLOOKUP($G4,$E$62:$F$79,2,FALSE)) -> 0 | R4: 0 | S4: =IF(U4>4,I4,0) -> 0 | T4: =P4*S4 -> 0 | U4: =IF(G4="",0,VLOOKUP($G4,$E$62:$I$79,5,FALSE)) -> 0 | V4: =IF(U4>4,I4,0) -> 0
M5: =IF(P5>0,T5,IF(AND(K5<>0,L5<>0),K5*L5,K5)) -> 0 | P5: =IF(G5="",0,VLOOKUP($G5,$E$62:$F$79,2,FALSE)) -> 0 | Q5: =IF(H5="",0,VLOOKUP($G5,$E$62:$F$79,2,FALSE)) -> 0 | R5: =IF(I5="",0,VLOOKUP($G5,$E$62:$F$79,2,FALSE)) -> 0 | S5: =IF(U5>4,I5,0) -> 0 | T5: =P5*S5 -> 0 | U5: =IF(G5="",0,VLOOKUP($G5,$E$62:$I$79,5,FALSE)) -> 0 | V5: =IF(U5>4,I5,0) -> 0
M6: 0 | P6: 0 | Q6: 0 | R6: 0 | S6: 0 | T6: 0 | U6: 0 | V6: 0
M7: 0 | P7: 0 | Q7: 0 | R7: 0 | S7: 0 | T7: 0 | U7: 0 | V7: 0
M8: 0 | P8: 0 | Q8: 0 | R8: 0 | S8: 0 | T8: 0 | U8: 0 | V8: 0
M9: 0 | P9: 0 | Q9: 0 | R9: 0 | S9: 0 | T9: 0 | U9: 0 | V9: 0
M10: 0 | P10: 0 | Q10: 0 | R10: 0 | S10: 0 | T10: 0 | U10: 0 | V10: 0
M11: 0 | P11: 0 | Q11: 0 | R11: 0 | S11: 0 | T11: 0 | U11: 0 | V11: 0
M12: 0 | P12: 0 | Q12: 0 | R12: 0 | S12: 0 | T12: 0 | U12: 0 | V12: 0
M13: 0 | P13: 0 | Q13: 0 | R13: 0 | S13: 0 | T13: 0 | U13: 0 | V13: 0
M14: 0 | P14: 0 | Q14: 0 | R14: 0 | S14: 0 | T14: 0 | U14: 0 | V14: 0
L15: Subtotal (not including comp. for use of own car) | M15: =IF(S15>0,SUM(M4:M14)-T15,SUM(M4:M14)) -> 0 | S15: =SUM(S4:S14) -> 0 | T15: =SUM(T4:T14) -> 0 | U15: =SUM(M4:M14) -> 0 | V15: =SUM(V4:V14) -> 0
A16: Date: | C16: Use of private car authorized by: | T16: Sum km godtgj. | U16: =T15 -> 0
T17: Sum (eksk. km godtgj.) | U17: =U15-U16 -> 0
D18: Total km <10.000 km | F18: =SUMIF($G$4:$G$14,E67,$I$4:$I$14) -> 0 | G18: Total km abroad <10.000 km | I18: =SUMIF($G$4:$G$14,E71,$I$4:$I$14) -> 0 | J18: Total km moped <125ccm | M18: =SUMIF($G$4:$G$14,E76,$I$4:$I$14) -> 0
D19: Total km >10.000 km | F19: =SUMIF($G$4:$G$14,E68,$I$4:$I$14) -> 0 | G19: Total km abroad >10.000 km | I19: =SUMIF($G$4:$G$14,E72,$I$4:$I$14) -> 0 | J19: Total km motorcycle >125 ccm | M19: =SUMIF($G$4:$G$14,E77,$I$4:$I$14) -> 0 | T19: Sum annet | U19: =SUM(M18:M21) -> 0
D20: Total km El-car<10.000 km | F20: =SUMIF($G$4:$G$14,E69,$I$4:$I$14) -> 0 | G20: Total km El-car abroad <10.000 km | I20: =SUMIF($G$4:$G$14,E73,$I$4:$I$14) -> 0 | J20: Total km boat < 50 hk | M20: =SUMIF($G$4:$G$14,E78,$I$4:$I$14) -> 0 | T20: Sum utland | U20: =SUM(I18:I21) -> 0
D21: Total km El-car >10.000 km | F21: =SUMIF($G$4:$G$14,E70,$I$4:$I$14) -> 0 | G21: Total km El-car abroad >10.000 km | I21: =SUMIF($G$4:$G$14,E74,$I$4:$I$14) -> 0 | J21: Total km boat > 50hk | M21: =SUMIF($G$4:$G$14,E79,$I$4:$I$14) -> 0 | T21: Totalt | U21: =SUM(U19:U20) -> 0
D22: Total km to/from work | F22: =SUMIF($G$4:$G$14,E75,$I$4:$I$14) -> 0 | G22: Total km passengers | I22: =SUMIF($G$4:$G$14,E66,$I$4:$I$14) -> 0 | O22: =SUMIF($G$4:$G$14,#REF!,$I$4:$I$14) -> 0
A24: Expenses for accommodation, food, toll, etc.
A25: Date | B25: Description (If you stayed at a hotel, please specify the name and the address of the hotel) | I25: Paper receipts | J25: Currency | K25: Amount | L25: Exchange rate | M25: Amount
M26: =IF(AND(K26<>0,L26<>0),K26*L26,K26) -> 0
M27: =IF(AND(K27<>0,L27<>0),K27*L27,K27) -> 0
M28: 0
M29: 0
M30: 0
M31: 0
M32: 0
M33: 0
M34: 0
M35: 0
M36: 0
L37: Subtotal | M37: =IF(SUM(M26:M36)<>0,SUM(M26:M36),0) -> 0
D39: Travel expenses - automatically transferred to the front page | L39: Total | M39: =IF(OR(M15<>0,M37<>0,M48<>0),M15+M37+M48,0) -> 0
A42: Paid by the employer (the amount must be specified as a negative number as it will be subtracted from the total)
A43: Date | B43: Description | J43: Currency | K43: Amount | L43: Exchange rate | M43: Amount
M44: =IF(AND(K44<>0,L44<>0),K44*L44,K44) -> 0
M45: =IF(AND(K45<>0,L45<>0),K45*L45,K45) -> 0
M46: =IF(AND(K46<>0,L46<>0),K46*L46,K46) -> 0
A48: Accommodation (name and address of the hotel, B&B, etc. (not private)) | L48: Subtotal | M48: =SUM(M44:M46) -> 0
A49: If you fail to specify the name and address of your accommodation, tax will be deducted from the amount exceeding The Directorate of Taxes' rate for subsistance allowance not subject to withholding tax for overnight stay in accommodation with cooking facilities.
A52: Remarks (Name(s) of passenger(s))
A61: Tidsintervall | B61: Kontroll | C61: JA/NEI | D61: Kontroll | E61: Plukkliste transp.type | F61: Sats bil | G61: Skattefritt | H61: Skattepliktig | I61: Kontroll | J61: TT-kode
D62: 1 | E62: Taxi | F62: 0 | I62: 1
A63: 5-9 timer | C63: Yes | D63: 2 | E63: Plane | F63: 0 | I63: 2
A64: 9-12 timer | C64: No | D64: 3 | E64: Train | F64: 0 | I64: 3
A65: over 12 timer | D65: 4 | E65: Bus | F65: 0 | I65: 4
D66: 5 | E66: Passenger | F66: ='C'!F27 -> 1 | I66: 5
D67: 6 | E67: Car <10.000km | F67: ='C'!F28 -> 3.9 | G67: ='C'!C28 -> 3.5 | H67: ='C'!$D28 -> 0.4 | I67: 6 | J67: ='C'!A28 -> 1094/1096
D68: 7 | E68: Car >10.000km | F68: ='C'!$F$29 -> 3.9 | G68: ='C'!C29 -> 3.5 | H68: ='C'!$D29 -> 0.4 | I68: 7 | J68: ='C'!A29 -> 1097
D69: 8 | E69: El-car <10.000km | F69: ='C'!F32 -> 3.9 | G69: ='C'!C32 -> 3.5 | H69: ='C'!D32 -> 0.4 | I69: 8 | J69: ='C'!A32 -> 1093/1095
D70: 9 | E70: El-car >10.000km | F70: ='C'!F33 -> 3.9 | G70: ='C'!C33 -> 3.5 | H70: ='C'!D33 -> 0.4 | I70: 9 | J70: ='C'!A33 -> 1221/1223
D71: 10 | E71: Car abroad <10.000km | F71: ='C'!F30 -> 3.9 | G71: ='C'!C30 -> 3.5 | H71: ='C'!D30 -> 0.4 | I71: 10 | J71: ='C'!A30 -> 1202/1206
D72: 11 | E72: Car abroad >10.000km | F72: ='C'!F31 -> 3.9 | G72: ='C'!C31 -> 3.5 | H72: ='C'!D31 -> 0.4 | I72: 11 | J72: ='C'!A31 -> 1208
D73: 12 | E73: EL-car abroad <10.000km | F73: ='C'!F34 -> 3.9 | G73: ='C'!C34 -> 3.5 | H73: ='C'!D34 -> 0.4 | I73: 12 | J73: ='C'!A34 -> 1203/1225
D74: 13 | E74: El-car abroad >10.000km | F74: ='C'!F35 -> 3.9 | G74: ='C'!C35 -> 3.5 | H74: ='C'!D35 -> 0.4 | I74: 13 | J74: ='C'!A35 -> 1222
D75: 14 | E75: Car to/from work | F75: ='C'!F36 -> 1.6 | G75: ='C'!C36 -> 1.6 | H75: ='C'!D36 -> 0 | I75: 14 | J75: ='C'!A36 -> 1094
D76: 15 | E76: Moped <125 ccm | F76: ='C'!F37 -> 1.6 | G76: ='C'!C37 -> 1.6 | H76: ='C'!D37 -> 0 | I76: 15 | J76: ='C'!A37 -> 1061
D77: 16 | E77: Motorcycle >125 ccm | F77: ='C'!F38 -> 2.95 | G77: ='C'!C38 -> 2.95 | H77: ='C'!D38 -> 0 | I77: 16 | J77: ='C'!A38 -> 1063
D78: 17 | E78: Boat <50hk | F78: ='C'!F39 -> 4 | G78: ='C'!C39 -> 4 | H78: ='C'!D39 -> 0 | I78: 17 | J78: ='C'!A39 -> 1067
D79: 18 | E79: Boat >50hk | F79: ='C'!F40 -> 7.5 | G79: ='C'!C40 -> 7.5 | H79: ='C'!D40 -> 0 | I79: 18 | J79: ='C'!A40 -> 1068

Sheet C (hidden)
A5: TT-koder | B5: SATSTYPE | F5: Sats f.o.m 22.06.2018 | G5: Maks % av godtgjørelse | H5: Kommentarer
A6: utgår | B6: Administrativ forpleining (utgått 2015) | F6: 0 | H6: Adminstrativ forpleining innland utgår fom 2015
A7: utgår | B7: Administrativ forpleining utland (utgått 2016) | F7: 0 | H7: Adminstrativ forpleining utland (kr 100 - fom 2015, utgår fra 1/1-2016)
A8: 1048 | B8: Innland, kostgodtgj. u/overnatting | C8: 6-12 hours | F8: 297 | H8: Innenlands kostgodgjøring endret til 6 til 12 timer i 2015; ny sats fra 1/1-17 - 289,-
A9: 1085 | B9: Innland, kostgodgj. u/overnatting | C9: over 12 hours | F9: 552 | H9: over 12 timer; ny sats fra 1/1-17- 537,-
A10: utgår | B10: Innland, kostgodgj. u/overnatting (utgått 2015) | F10: 0 | H10: Kostgodtgjøring innland 9-12 timer utgår i 2015
B11: Grense for legitimerte overnattingsutgifter, innland | F11: 1800
A12: 1087 | B12: Innland, over 12 kostgodtgj m/overnatting | C12: over 12 timer | F12: 754 | H12: Per 1/1-2017 er dette kr.733,-
A13: 1214 | B13: Kompensasjonstillegg, utland | F13: 515 | H13: Per 1/1-2017 er dette kr. 491,-
A15: 1076 | B15: Trekkfri kostgodtgjørelse for pensjonat | F15: 159 | H15: Her er kun kr. 315 (fra 2017) skattefritt, resten må det skattes av (gjelder både innland og utland)
A16: 1073 | B16: Trekkfri kostgodtgjørelse hybel/brakke/priv | F16: 88 | H16: Her er kun kr. 205 (fra 2017) skattefritt, resten må det skattes av (gjelder både innland og utland)
A17: 1053 | B17: Innland, ulegitimertnattillegg | F17: 430
B18: Innland, kostgodtgjøring beordring 0-28 døgn | F18: 754 | H18: Dette brukes ikke, men UiB bruker også kost utover 28 døgn (75%)- feltarbeid
B19: Innland, ulegitimert overnatting beordring 0-28 døgn | F19: 430 | H19: Dette brukes ikke, men UiB bruker også nattillegg 28 døgn (90%)- feltarbeid
A20: 1269 | B20: Kostgodtgjørelse beording over 28 døgn | F20: 195 | H20: 9.3 Særavtale for reiser utenlands for statens regning, (kostgodtgjørelse reduseres med 25% av det landet de landet de er i)
B21: Trekk, frokost innland dagreise | F21: =ROUND(20%*754,0) -> 151 | H21: 20% av 754
B22: Trekk, lunsj, innland dagreise | F22: =ROUND(30%*754,0) -> 226 | H22: 30% av 754
B23: Trekk, middag, innland dagreise | F23: =50%*754 -> 377 | H23: 50% av 754
B24: Trekk prosent frokost | F24: 0.2
B25: Trekk prosent lunsj | F25: 0.3
B26: Trekk prosent middag | F26: 0.5
A27: 1045 | B27: Passasjertillegg | C27: Skattefritt | D27: Skattepliktig | F27: 1
A28: 1094/1096 | B28: Bil km-godtgjørelse 0-10000 km | C28: 3.5 | D28: 0.4 | F28: 3.9
A29: 1097 | B29: Bil km-godtgjørelse over 10000 km * | C29: 3.5 | D29: 0.4 | F29: 3.9
A30: 1202/1206 | B30: Bil utland: kilometergodtgjørelse < 10.000 | C30: 3.5 | D30: 0.4 | F30: 3.9
A31: 1208 | B31: Bil utland: kilometergodtgjørelse > 10.000 | C31: 3.5 | D31: 0.4 | F31: 3.9
A32: 1093/1095 | B32: EL-bil km.godtgj. 0-10.000 km | C32: 3.5 | D32: 0.4 | F32: 3.9
A33: 1221/1223 | B33: EL-bil km.godtgj. > 10.000 km | C33: 3.5 | D33: 0.4 | F33: 3.9
A34: 1203/1225 | B34: EL-bil utland km.godtgj. 0-10.000 km | C34: 3.5 | D34: 0.4 | F34: 3.9
A35: 1222 | B35: EL-bil utland km.godtgj. > 10.000 km | C35: 3.5 | D35: 0.4 | F35: 3.9
A36: 1094 | B36: Bil hjem - arbeid | C36: =F36 -> 1.6 | D36: 0 | F36: 1.6
A37: 1061 | B37: Moped < 125 ccm km. Godtgjørelse | C37: =F37 -> 1.6 | D37: 0 | F37: 1.6
A38: 1063 | B38: Motorsykkel >125 ccm km.godtgj. | C38: =F38 -> 2.95 | D38: 0 | F38: 2.95
A39: 1067 | B39: Båt < 50 hk km.godtgj. | C39: =F39 -> 4 | D39: 0 | F39: 4
A40: 1068 | B40: Båt > 50 hk km.godtgj. | C40: =F40 -> 7.5 | D40: 0 | F40: 7.5
A41: 1200/1205 | B41: Bil kilometergodtgjørelse i Tromsø 0-10.000 | C41: 3.5 | D41: 0.5 | F41: 4
A42: 1201/1224 | B42: Bil kilometergodtgjørelse Tromsø > 10.000 | C42: 3.5 | D42: 0.5 | F42: 4
A43: 1066 | B43: Andre fremkomstmidler km.godtgj. | C43: =F43 -> 2 | F43: 2
A44: 1065 | B44: Tillegg: Skogs- og anleggsvei | F44: 1
B45: Tillegg: Snøscooter | F45: 1.7 | H45: utgår 2016
A46: 1064 | B46: Tillegg: Tilhenger | F46: 7.5
A47: 1062 | B47: Tillegg | F47: 1
A48: 1087 | B48: Trekkfrie satser hotell | G48: 569
E50: 1065
E51: 1062
E52: 1066
I54: Pensjon utland | L54: Hybel/brakke/privat innkv. Utland
A55: 1 | C55: Makssatser Natt utgått 01.01.2016 | D55: Kost t.o.m 21.06.2018 | E55: Nye satser fra 22.06.18 | I55: TT-kode | J55: Skattefritt | K55: Skattepliktig | L55: TT-kode | M55: Skattefritt | N55: Skattepliktig
A56: 117 | B56: Europa: | I56: 1076/1075 | L56: 1073/1075
A57: 118 | B57: Albania | C57: 1520 | D57: 390 | E57: 330 | I57: 1076/1075 | J57: 315 | K57: =D57-J57 -> 75 | L57: 1073/1075 | M57: 205 | N57: =D57-M57 -> 185
A58: 119 | B58: Belgia | C58: 2100 | D58: 900 | E58: 920 | I58: 1076/1075 | J58: 315 | K58: =D58-J58 -> 585 | L58: 1073/1075 | M58: 205 | N58: =D58-M58 -> 695
A59: 120 | B59: Bosnia og Hercegovina | C59: 800 | D59: 430 | E59: 480 | I59: 1076/1075 | J59: 315 | K59: =D59-J59 -> 115 | L59: 1073/1075 | M59: 205 | N59: =D59-M59 -> 225
A60: 121 | B60: Bulgaria | C60: 900 | D60: 420 | E60: 520 | I60: 1076/1075 | J60: 315 | K60: 105 | L60: 1073/1075 | M60: 205 | N60: 215
A61: 122 | B61: Danmark | C61: 1700 | D61: 800 | E61: 1190 | I61: 1076/1075 | J61: 315 | K61: 485 | L61: 1073/1075 | M61: 205 | N61: 595
A62: 123 | B62: København | C62: 1750 | D62: 930 | E62: 1190 | I62: 1076/1075 | J62: 315 | K62: 615 | L62: 1073/1075 | M62: 205 | N62: 725
A63: 124 | B63: Estland | C63: 1000 | D63: 600 | E63: 660 | I63: 1076/1075 | J63: 315 | K63: 285 | L63: 1073/1075 | M63: 205 | N63: 395
A64: 125 | B64: Finland | C64: 1500 | D64: 760 | E64: 950 | I64: 1076/1075 | J64: 315 | K64: 445 | L64: 1073/1075 | M64: 205 | N64: 555
A65: 126 | B65: Frankrike | C65: 1600 | D65: 780 | E65: 750 | I65: 1076/1075 | J65: 315 | K65: 465 | L65: 1073/1075 | M65: 205 | N65: 575
A66: 127 | B66: Paris | C66: 2800 | D66: 900 | E66: 930 | I66: 1076/1075 | J66: 315 | K66: 585 | L66: 1073/1075 | M66: 205 | N66: 695
A67: 128 | B67: Hellas | C67: 1100 | D67: 630 | E67: 770 | I67: 1076/1075 | J67: 315 | K67: 315 | L67: 1073/1075 | M67: 205 | N67: 425
A68: 129 | B68: Hviterussland | C68: 1200 | D68: 400 | E68: 370 | I68: 1076/1075 | J68: 315 | K68: 85 | L68: 1073/1075 | M68: 205 | N68: 195
A69: 130 | B69: Irland | C69: 1700 | D69: 850 | E69: 890 | I69: 1076/1075 | J69: 315 | K69: 535 | L69: 1073/1075 | M69: 205 | N69: 645
A70: 131 | B70: Island | C70: 2100 | D70: 850 | E70: 1240 | I70: 1076/1075 | J70: 315 | K70: 535 | L70: 1073/1075 | M70: 205 | N70: 645
B71: Italia | C71: 2100 | D71: 900 | E71: 760 | I71: 1076/1075 | J71: 315 | K71: 585 | L71: 1073/1075 | M71: 205 | N71: 695
B72: Kosovo | C72: 700 | D72: 360 | E72: 370 | I72: 1076/1075 | J72: 315 | K72: 45 | L72: 1073/1075 | M72: 205 | N72: 155
A73: 132 | B73: Kroatia | C73: 1750 | D73: 740 | E73: 600 | I73: 1076/1075 | J73: 315 | K73: 425 | L73: 1073/1075 | M73: 205 | N73: 535
B74: Kypros | C74: 1800 | D74: 700 | E74: 740 | I74: 1076/1075 | J74: 315 | K74: 385 | L74: 1073/1075 | M74: 205 | N74: 495
A75: 133 | B75: Latvia | C75: 1000 | D75: 650 | E75: 670 | I75: 1076/1075 | J75: 315 | K75: 335 | L75: 1073/1075 | M75: 205 | N75: 445
A76: 134 | B76: Liechtenstein | C76: 1900 | D76: 1200 | E76: 1290 | I76: 1076/1075 | J76: 315 | K76: 885 | L76: 1073/1075 | M76: 205 | N76: 995
A77: 135 | B77: Litauen | C77: 1000 | D77: 490 | E77: 520 | I77: 1076/1075 | J77: 315 | K77: =D77-J77 -> 175 | L77: 1073/1075 | M77: 205 | N77: =D77-M77 -> 285
A78: 136 | B78: Luxembourg | C78: 1600 | D78: 800 | E78: 920 | I78: 1076/1075 | J78: 315 | K78: 485 | L78: 1073/1075 | M78: 205 | N78: 595
A79: 137 | B79: Makedonia | C79: 1100 | D79: 540 | E79: 450 | I79: 1076/1075 | J79: 315 | K79: 225 | L79: 1073/1075 | M79: 205 | N79: 335
A80: 138 | B80: Malta | C80: 1650 | D80: 700 | E80: 690 | I80: 1076/1075 | J80: 315 | K80: 385 | L80: 1073/1075 | M80: 205 | N80: 495
A81: 139 | B81: Moldova | C81: 1400 | D81: 380 | E81: 340 | I81: 1076/1075 | J81: 315 | K81: 65 | L81: 1073/1075 | M81: 205 | N81: 175
A82: 140 | B82: Monaco | C82: 2800 | D82: 1100 | E82: 1080 | I82: 1076/1075 | J82: 315 | K82: 785 | L82: 1073/1075 | M82: 205 | N82: 895
A83: 141 | B83: Montenegro | C83: 1300 | D83: 500 | E83: 570 | I83: 1076/1075 | J83: 315 | K83: 185 | L83: 1073/1075 | M83: 205 | N83: 295
A84: 142 | B84: Nederland | C84: 1500 | D84: 650 | E84: 770 | I84: 1076/1075 | J84: 315 | K84: 335 | L84: 1073/1075 | M84: 205 | N84: 445
A85: 143 | B85: Polen | C85: 1900 | D85: 600 | E85: 600 | I85: 1076/1075 | J85: 315 | K85: 285 | L85: 1073/1075 | M85: 205 | N85: 395
A86: 144 | B86: Portugal | C86: 2500 | D86: 700 | E86: 620 | I86: 1076/1075 | J86: 315 | K86: 385 | L86: 1073/1075 | M86: 205 | N86: 495
A87: 145 | B87: Romania | C87: 1500 | D87: 550 | E87: 470 | I87: 1076/1075 | J87: 315 | K87: 235 | L87: 1073/1075 | M87: 205 | N87: 345
A88: 146 | B88: Russland | C88: 1600 | D88: 650 | E88: 510 | I88: 1076/1075 | J88: 315 | K88: 335 | L88: 1073/1075 | M88: 205 | N88: 445
A89: 147 | B89: Moskva | C89: 3200 | D89: 980 | E89: 710 | I89: 1076/1075 | J89: 315 | K89: 665 | L89: 1073/1075 | M89: 205 | N89: 775
A90: 148 | B90: St. Petersburg | C90: 1600 | D90: 810 | E90: 590 | I90: 1076/1075 | J90: 315 | K90: 495 | L90: 1073/1075 | M90: 205 | N90: 605
A91: 149 | B91: Serbia | C91: 1500 | D91: 630 | E91: 510 | I91: 1076/1075 | J91: 315 | K91: 315 | L91: 1073/1075 | M91: 205 | N91: 425
A92: 151 | B92: Slovakia | C92: 1000 | D92: 600 | E92: 650 | I92: 1076/1075 | J92: 315 | K92: 285 | L92: 1073/1075 | M92: 205 | N92: 395
A93: 152 | B93: Slovenia | C93: 1900 | D93: 510 | E93: 670 | I93: 1076/1075 | J93: 315 | K93: 195 | L93: 1073/1075 | M93: 205 | N93: 305
A94: 153 | B94: Spania | C94: 1700 | D94: 880 | E94: 720 | I94: 1076/1075 | J94: 315 | K94: 565 | L94: 1073/1075 | M94: 205 | N94: 675
A95: 154 | B95: Storbritannia | C95: 1400 | D95: 680 | E95: 750 | I95: 1076/1075 | J95: 315 | K95: 365 | L95: 1073/1075 | M95: 205 | N95: 475
A96: 155 | B96: London | C96: 2400 | D96: 1100 | E96: 900 | I96: 1076/1075 | J96: 315 | K96: 785 | L96: 1073/1075 | M96: 205 | N96: 895
A97: 156 | B97: Sveits | C97: 1450 | D97: 1050 | E97: 1070 | I97: 1076/1075 | J97: 315 | K97: 735 | L97: 1073/1075 | M97: 205 | N97: 845
A98: 157 | B98: Genève | C98: 4000 | D98: 1050 | E98: 1270 | I98: 1076/1075 | J98: 315 | K98: 735 | L98: 1073/1075 | M98: 205 | N98: 845
A99: 158 | B99: Zürich | C99: 3000 | D99: 1200 | E99: 1290 | I99: 1076/1075 | J99: 315 | K99: 885 | L99: 1073/1075 | M99: 205 | N99: 995
A100: 159 | B100: Sverige | C100: 1900 | D100: 750 | E100: 820 | I100: 1076/1075 | J100: 315 | K100: 435 | L100: 1073/1075 | M100: 205 | N100: 545
A101: 160 | B101: Tjekkiske republikk | C101: 1800 | D101: 550 | E101: 540 | I101: 1076/1075 | J101: 315 | K101: 235 | L101: 1073/1075 | M101: 205 | N101: 345
A102: 161 | B102: Tyskland | C102: 1900 | D102: 750 | E102: 760 | I102: 1076/1075 | J102: 315 | K102: 435 | L102: 1073/1075 | M102: 205 | N102: 545
A103: 162 | B103: Berlin | C103: 2250 | D103: 900 | E103: 850 | I103: 1076/1075 | J103: 315 | K103: 585 | L103: 1073/1075 | M103: 205 | N103: 695
A104: 163 | B104: Ukraina | C104: 1400 | D104: 530 | E104: 430 | I104: 1076/1075 | J104: 315 | K104: 215 | L104: 1073/1075 | M104: 205 | N104: 325
A105: 164 | B105: Ungarn | C105: 2000 | D105: 640 | E105: 590 | I105: 1076/1075 | J105: 315 | K105: 325 | L105: 1073/1075 | M105: 205 | N105: 435
A106: 165 | B106: Østerrike | C106: 1400 | D106: 760 | E106: 830 | I106: 1076/1075 | J106: 315 | K106: 445 | L106: 1073/1075 | M106: 205 | N106: 555
A107: 166 | B107: Wien | C107: 1900 | D107: 900 | E107: 810 | I107: 1076/1075 | J107: 315 | K107: 585 | L107: 1073/1075 | M107: 205 | N107: 695
B108: Afrika: | I108: 1076/1075 | J108: 315 | K108: -315 | L108: 1073/1075 | M108: 205 | N108: -205
B109: Algerie | C109: 1900 | D109: 700 | E109: 550 | I109: 1076/1075 | J109: 315 | K109: 385 | L109: 1073/1075 | M109: 205 | N109: 495
A110: 3 | B110: Angola | C110: 2650 | D110: 1270 | E110: 1320 | I110: 1076/1075 | J110: 315 | K110: 955 | L110: 1073/1075 | M110: 205 | N110: 1065
A111: 4 | B111: Benin | C111: 1550 | D111: 490 | E111: 670 | I111: 1076/1075 | J111: 315 | K111: 175 | L111: 1073/1075 | M111: 205 | N111: 285
A112: 5 | B112: Botswana | C112: 1500 | D112: 450 | E112: 420 | I112: 1076/1075 | J112: 315 | K112: 135 | L112: 1073/1075 | M112: 205 | N112: 245
A113: 6 | B113: Burundi | C113: 1000 | D113: 460 | E113: 430 | I113: 1076/1075 | J113: 315 | K113: 145 | L113: 1073/1075 | M113: 205 | N113: 255
B114: Demokratiske republikken Kongo | E114: 870
B115: Egypt | C115: 2400 | D115: 650 | E115: 280 | I115: 1076/1075 | J115: 315 | K115: 335 | L115: 1073/1075 | M115: 205 | N115: 445
A116: 7 | B116: Elfenbenskysten | C116: 1620 | D116: 700 | E116: 710 | I116: 1076/1075 | J116: 315 | K116: 385 | L116: 1073/1075 | M116: 205 | N116: 495
A117: 8 | B117: Eritrea | C117: 1050 | D117: 700 | E117: 700 | I117: 1076/1075 | J117: 315 | K117: 385 | L117: 1073/1075 | M117: 205 | N117: 495
A118: 9 | B118: Etiopia | C118: 2000 | D118: 450 | E118: 450 | I118: 1076/1075 | J118: 315 | K118: 135 | L118: 1073/1075 | M118: 205 | N118: 245
B119: Gabon | E119: 940
A120: 10 | B120: Ghana | C120: 2300 | D120: 500 | E120: 630 | I120: 1076/1075 | J120: 315 | K120: 185 | L120: 1073/1075 | M120: 205 | N120: 295
A121: 11 | B121: Kamerun | C121: 1800 | D121: 560 | E121: 700 | I121: 1076/1075 | J121: 315 | K121: 245 | L121: 1073/1075 | M121: 205 | N121: 355
A122: 12 | B122: Kenya | C122: 1600 | D122: 580 | E122: 650 | I122: 1076/1075 | J122: 315 | K122: 265 | L122: 1073/1075 | M122: 205 | N122: 375
A123: 13 | B123: Lesotho | C123: 1000 | D123: 350 | E123: 340 | I123: 1076/1075 | J123: 315 | K123: 35 | L123: 1073/1075 | M123: 205 | N123: 145
A124: 14 | B124: Madagaskar | C124: 900 | D124: 350 | E124: 350 | I124: 1076/1075 | J124: 315 | K124: 35 | L124: 1073/1075 | M124: 205 | N124: 145
A125: 15 | B125: Malawi | C125: 1100 | D125: 360 | E125: 340 | I125: 1076/1075 | J125: 315 | K125: 45 | L125: 1073/1075 | M125: 205 | N125: 155
A126: 16 | B126: Marokko | C126: 1800 | D126: 670 | E126: 540 | I126: 1076/1075 | J126: 315 | K126: 355 | L126: 1073/1075 | M126: 205 | N126: 465
A127: 17 | B127: Mauritius | C127: 1150 | D127: 480 | E127: 570 | I127: 1076/1075 | J127: 315 | K127: 165 | L127: 1073/1075 | M127: 205 | N127: 275
A128: 18 | B128: Mosambik | C128: 2100 | D128: 690 | E128: 410 | I128: 1076/1075 | J128: 315 | K128: 375 | L128: 1073/1075 | M128: 205 | N128: 485
A129: 19 | B129: Namibia | C129: 1350 | D129: 360 | E129: 420 | I129: 1076/1075 | J129: 315 | K129: 45 | L129: 1073/1075 | M129: 205 | N129: 155
A130: 20 | B130: Nigeria | C130: 3200 | D130: 980 | E130: 680 | I130: 1076/1075 | J130: 315 | K130: 665 | L130: 1073/1075 | M130: 205 | N130: 775
A131: 21 | B131: Seychellene | C131: 2500 | D131: 810 | E131: 750 | I131: 1076/1075 | J131: 315 | K131: 495 | L131: 1073/1075 | M131: 205 | N131: 605
A132: 22 | B132: Sudan | C132: 1750 | D132: 800 | E132: 660 | I132: 1076/1075 | J132: 315 | K132: 485 | L132: 1073/1075 | M132: 205 | N132: 595
A133: 23 | B133: Swasiland | C133: 1100 | D133: 350 | E133: 360 | I133: 1076/1075 | J133: 315 | K133: 35 | L133: 1073/1075 | M133: 205 | N133: 145
A134: 24 | B134: Sør-Afrika | C134: 2500 | D134: 540 | E134: 440 | I134: 1076/1075 | J134: 315 | K134: 225 | L134: 1073/1075 | M134: 205 | N134: 335
B135: Sør-Sudan | C135: 1900 | D135: 580 | E135: 350 | I135: 1076/1075 | J135: 315 | K135: 265 | L135: 1073/1075 | M135: 205 | N135: 375
A136: 25 | B136: Tanzania | C136: 1950 | D136: 650 | E136: 520 | I136: 1076/1075 | J136: 315 | K136: 335 | L136: 1073/1075 | M136: 205 | N136: 445
A137: 26 | B137: Togo | C137: 1000 | D137: 500 | E137: 610 | I137: 1076/1075 | J137: 315 | K137: 185 | L137: 1073/1075 | M137: 205 | N137: 295
A138: 27 | B138: Zambia | C138: 1350 | D138: 600 | E138: 570 | I138: 1076/1075 | J138: 315 | K138: 285 | L138: 1073/1075 | M138: 205 | N138: 395
A139: 28 | B139: Zimbabwe | C139: 1300 | D139: 590 | E139: 740 | I139: 1076/1075 | J139: 315 | K139: 275 | L139: 1073/1075 | M139: 205 | N139: 385
A140: 29 | B140: Øvrige områder | C140: 1700 | D140: 580 | E140: 580 | I140: 1076/1075 | J140: 315 | K140: 265 | L140: 1073/1075 | M140: 205 | N140: 375
A141: 30 | B141: Amerika: | I141: 1076/1075 | J141: 315 | K141: -315 | L141: 1073/1075 | M141: 205 | N141: -205
A142: 31 | B142: Argentina | C142: 1600 | D142: 520 | E142: 710 | I142: 1076/1075 | J142: 315 | K142: 205 | L142: 1073/1075 | M142: 205 | N142: 315
A143: 32 | B143: Bahamas | C143: 2000 | D143: 940 | E143: 1150 | I143: 1076/1075 | J143: 315 | K143: =D143-J143 -> 625 | L143: 1073/1075 | M143: 205 | N143: =D143-M143 -> 735
B144: Barbados | C144: 1450 | D144: 860 | E144: 1070 | I144: 1076/1075 | J144: 315 | K144: 545 | L144: 1073/1075 | M144: 205 | N144: 655
A145: 33 | B145: Bolivia | C145: 650 | D145: 340 | E145: 430 | I145: 1076/1075 | J145: 315 | K145: 25 | L145: 1073/1075 | M145: 205 | N145: 135
A146: 34 | B146: Brasil | C146: 2200 | D146: 650 | E146: 640 | I146: 1076/1075 | J146: 315 | K146: 335 | L146: 1073/1075 | M146: 205 | N146: 445
A147: 35 | B147: Rio de Janeiro | C147: 3000 | D147: 820 | E147: 720 | I147: 1076/1075 | J147: 315 | K147: 505 | L147: 1073/1075 | M147: 205 | N147: 615
A148: 36 | B148: Canada | C148: 2300 | D148: 930 | E148: 790 | I148: 1076/1075 | J148: 315 | K148: 615 | L148: 1073/1075 | M148: 205 | N148: 725
A149: 37 | B149: Chile | C149: 1500 | D149: 720 | E149: 590 | I149: 1076/1075 | J149: 315 | K149: 405 | L149: 1073/1075 | M149: 205 | N149: 515
A150: 38 | B150: Colombia | C150: 2000 | D150: 500 | E150: 550 | I150: 1076/1075 | J150: 315 | K150: 185 | L150: 1073/1075 | M150: 205 | N150: 295
A151: 39 | B151: Costa Rica | C151: 1000 | D151: 550 | E151: 650 | I151: 1076/1075 | J151: 315 | K151: 235 | L151: 1073/1075 | M151: 205 | N151: 345
A152: 40 | B152: Cuba | C152: 1100 | D152: 560 | E152: 570 | I152: 1076/1075 | J152: 315 | K152: 245 | L152: 1073/1075 | M152: 205 | N152: 355
A153: 42 | B153: El Salvador | C153: 1000 | D153: 440 | E153: 600 | I153: 1076/1075 | J153: 315 | K153: 125 | L153: 1073/1075 | M153: 205 | N153: 235
A154: 44 | B154: Guatemala | C154: 1100 | D154: 550 | E154: 720 | I154: 1076/1075 | J154: 315 | K154: 235 | L154: 1073/1075 | M154: 205 | N154: 345
A155: 45 | B155: Guyana | C155: 1200 | D155: 560 | E155: 690 | I155: 1076/1075 | J155: 315 | K155: 245 | L155: 1073/1075 | M155: 205 | N155: 355
A156: 47 | B156: Honduras | C156: 1200 | D156: 400 | E156: 490 | I156: 1076/1075 | J156: 315 | K156: 85 | L156: 1073/1075 | M156: 205 | N156: 195
B157: Jamaica | C157: 1200 | D157: 610 | E157: 700 | I157: 1076/1075 | J157: 315 | K157: 295 | L157: 1073/1075 | M157: 205 | N157: 405
A158: 48 | B158: Mexico | C158: 2200 | D158: 680 | E158: 480 | I158: 1076/1075 | J158: 315 | K158: 365 | L158: 1073/1075 | M158: 205 | N158: 475
A159: 49 | B159: Nicaragua | C159: 1200 | D159: 460 | E159: 530 | I159: 1076/1075 | J159: 315 | K159: 145 | L159: 1073/1075 | M159: 205 | N159: 255
A160: 50 | B160: Panama | C160: 1400 | D160: 500 | E160: 650 | I160: 1076/1075 | J160: 315 | K160: 185 | L160: 1073/1075 | M160: 205 | N160: 295
A161: 51 | B161: Paraguay | C161: 1200 | D161: 500 | E161: 460 | I161: 1076/1075 | J161: 315 | K161: 185 | L161: 1073/1075 | M161: 205 | N161: 295
A162: 52 | B162: Peru | C162: 1500 | D162: 750 | E162: 680 | I162: 1076/1075 | J162: 315 | K162: 435 | L162: 1073/1075 | M162: 205 | N162: 545
A163: 53 | B163: Puerto Rico | C163: 1200 | D163: 700 | E163: 890 | I163: 1076/1075 | J163: 315 | K163: 385 | L163: 1073/1075 | M163: 205 | N163: 495
A164: 54 | B164: Surinam | C164: 1000 | D164: 550 | E164: 460 | I164: 1076/1075 | J164: 315 | K164: 235 | L164: 1073/1075 | M164: 205 | N164: 345
A165: 55 | B165: Uruguay | C165: 1350 | D165: 600 | E165: 750 | I165: 1076/1075 | J165: 315 | K165: 285 | L165: 1073/1075 | M165: 205 | N165: 395
A166: 56 | B166: USA | C166: 1750 | D166: 700 | E166: 870 | I166: 1076/1075 | J166: 315 | K166: 385 | L166: 1073/1075 | M166: 205 | N166: 495
A167: 57 | B167: New York | C167: 3000 | D167: 950 | E167: 1170 | I167: 1076/1075 | J167: 315 | K167: 635 | L167: 1073/1075 | M167: 205 | N167: 745
B168: San Francisco | C168: 2000 | D168: 1000 | E168: 980 | I168: 1076/1075 | J168: 315 | K168: 685 | L168: 1073/1075 | M168: 205 | N168: 795
A169: 58 | B169: Washington DC | C169: 3100 | D169: 1000 | E169: 990 | I169: 1076/1075 | J169: 315 | K169: 685 | L169: 1073/1075 | M169: 205 | N169: 795
A170: 59 | B170: Venezuela | C170: 2400 | D170: 1600 | E170: 1600 | I170: 1076/1075 | J170: 315 | K170: 1285 | L170: 1073/1075 | M170: 205 | N170: 1395
A171: 60 | B171: Øvrige områder | C171: 1700 | D171: 710 | E171: 740 | I171: 1076/1075 | J171: 315 | K171: 395 | L171: 1073/1075 | M171: 205 | N171: 505
A172: 61 | B172: Asia: | I172: 1076/1075 | J172: 315 | K172: -315 | L172: 1073/1075 | M172: 205 | N172: -205
A173: 62 | B173: Afghanistan | C173: 2300 | D173: 500 | E173: 580 | I173: 1076/1075 | J173: 315 | K173: 185 | L173: 1073/1075 | M173: 205 | N173: 295
A174: 63 | B174: Armenia | C174: 1400 | D174: 500 | E174: 470 | I174: 1076/1075 | J174: 315 | K174: 185 | L174: 1073/1075 | M174: 205 | N174: 295
A175: 64 | B175: Aserbajdsjan | C175: 2650 | D175: 750 | E175: 500 | I175: 1076/1075 | J175: 315 | K175: 435 | L175: 1073/1075 | M175: 205 | N175: 545
A176: 65 | B176: Bahrain | C176: 1650 | D176: 800 | E176: 820 | I176: 1076/1075 | J176: 315 | K176: 485 | L176: 1073/1075 | M176: 205 | N176: 595
A177: 66 | B177: Bangladesh | C177: 3000 | D177: 530 | E177: 560 | I177: 1076/1075 | J177: 315 | K177: 215 | L177: 1073/1075 | M177: 205 | N177: 325
A178: 67 | B178: Brunei | C178: 1000 | D178: 400 | E178: 510 | I178: 1076/1075 | J178: 315 | K178: 85 | L178: 1073/1075 | M178: 205 | N178: 195
A179: 69 | B179: Filippinene | C179: 2100 | D179: 700 | E179: 580 | I179: 1076/1075 | J179: 315 | K179: 385 | L179: 1073/1075 | M179: 205 | N179: 495
A180: 70 | B180: Forente arabiske emirater | C180: 1700 | D180: 1000 | E180: 1000 | I180: 1076/1075 | J180: 315 | K180: 685 | L180: 1073/1075 | M180: 205 | N180: 795
A181: 71 | B181: Georgia | C181: 2200 | D181: 570 | E181: 390 | I181: 1076/1075 | J181: 315 | K181: 255 | L181: 1073/1075 | M181: 205 | N181: 365
A182: 72 | B182: India | C182: 1700 | D182: 500 | E182: 520 | I182: 1076/1075 | J182: 315 | K182: 185 | L182: 1073/1075 | M182: 205 | N182: 295
A183: 74 | B183: Indonesia | C183: 2600 | D183: 550 | E183: 550 | I183: 1076/1075 | J183: 315 | K183: 235 | L183: 1073/1075 | M183: 205 | N183: 345
A184: 75 | B184: Iran | C184: 1600 | D184: 750 | E184: 630 | I184: 1076/1075 | J184: 315 | K184: 435 | L184: 1073/1075 | M184: 205 | N184: 545
A185: 76 | B185: Israel | C185: 2900 | D185: 900 | E185: 1170 | I185: 1076/1075 | J185: 315 | K185: 585 | L185: 1073/1075 | M185: 205 | N185: 695
A186: 78 | B186: Japan | C186: 2200 | D186: 700 | E186: 770 | I186: 1076/1075 | J186: 315 | K186: 385 | L186: 1073/1075 | M186: 205 | N186: 495
B187: Jemen | C187: 1200 | D187: 500 | E187: 580 | I187: 1076/1075 | J187: 315 | K187: 185 | L187: 1073/1075 | M187: 205 | N187: 295
A188: 79 | B188: Jordan | C188: 2800 | D188: 1150 | E188: 910 | I188: 1076/1075 | J188: 315 | K188: 835 | L188: 1073/1075 | M188: 205 | N188: 945
A189: 80 | B189: Kambodsja | C189: 1650 | D189: 670 | E189: 570 | I189: 1076/1075 | J189: 315 | K189: 355 | L189: 1073/1075 | M189: 205 | N189: 465
A190: 81 | B190: Kasakhstan | C190: 1750 | D190: 700 | E190: 450 | I190: 1076/1075 | J190: 315 | K190: 385 | L190: 1073/1075 | M190: 205 | N190: 495
A191: 82 | B191: Kina | C191: 2000 | D191: 730 | E191: 750 | I191: 1076/1075 | J191: 315 | K191: 415 | L191: 1073/1075 | M191: 205 | N191: 525
A192: 83 | B192: Hong Kong | C192: 3100 | D192: 1000 | E192: 920 | I192: 1076/1075 | J192: 315 | K192: 685 | L192: 1073/1075 | M192: 205 | N192: 795
A193: 84 | B193: Shanghai | C193: 2400 | D193: 870 | E193: 810 | I193: 1076/1075 | J193: 315 | K193: 555 | L193: 1073/1075 | M193: 205 | N193: 665
A194: 85 | B194: Kuwait | C194: 1700 | D194: 730 | E194: 900 | I194: 1076/1075 | J194: 315 | K194: 415 | L194: 1073/1075 | M194: 205 | N194: 525
A195: 87 | B195: Laos | C195: 1500 | D195: 500 | E195: 470 | I195: 1076/1075 | J195: 315 | K195: 185 | L195: 1073/1075 | M195: 205 | N195: 295
A196: 88 | B196: Libanon | C196: 2200 | D196: 890 | E196: 910 | I196: 1076/1075 | J196: 315 | K196: 575 | L196: 1073/1075 | M196: 205 | N196: 685
A197: 89 | B197: Malaysia | C197: 1400 | D197: 600 | E197: 420 | I197: 1076/1075 | J197: 315 | K197: 285 | L197: 1073/1075 | M197: 205 | N197: 395
A198: 90 | B198: Maldivene | C198: 3000 | D198: 660 | E198: 490 | I198: 1076/1075 | J198: 315 | K198: 345 | L198: 1073/1075 | M198: 205 | N198: 455
A199: 91 | B199: Myanmar (Burma) | C199: 1700 | D199: 690 | E199: 500 | I199: 1076/1075 | J199: 315 | K199: 375 | L199: 1073/1075 | M199: 205 | N199: 485
A200: 93 | B200: Nord-Korea | C200: 1000 | D200: 450 | E200: 520 | I200: 1076/1075 | J200: 315 | K200: 135 | L200: 1073/1075 | M200: 205 | N200: 245
A201: 94 | B201: Oman | C201: 2700 | D201: 800 | E201: 980 | I201: 1076/1075 | J201: 315 | K201: 485 | L201: 1073/1075 | M201: 205 | N201: 595
A202: 95 | B202: Pakistan | C202: 2100 | D202: 400 | E202: 440 | I202: 1076/1075 | J202: 315 | K202: 85 | L202: 1073/1075 | M202: 205 | N202: 195
B203: Palestina | C203: 1400 | D203: 800 | E203: 920 | I203: 1076/1075 | J203: 315 | K203: 485 | L203: 1073/1075 | M203: 205 | N203: 595
A204: 96 | B204: Qatar | C204: 1600 | D204: 730 | E204: 920 | I204: 1076/1075 | J204: 315 | K204: 415 | L204: 1073/1075 | M204: 205 | N204: 525
A205: 97 | B205: Saudi-Arabia | C205: 2700 | D205: 890 | E205: 790 | I205: 1076/1075 | J205: 315 | K205: 575 | L205: 1073/1075 | M205: 205 | N205: 685
A206: 98 | B206: Singapore | C206: 3250 | D206: 800 | E206: 810 | I206: 1076/1075 | J206: 315 | K206: 485 | L206: 1073/1075 | M206: 205 | N206: 595
A207: 99 | B207: Sri Lanka | C207: 1200 | D207: 410 | E207: 440 | I207: 1076/1075 | J207: 315 | K207: =D207-J207 -> 95 | L207: 1073/1075 | M207: 205 | N207: =D207-M207 -> 205
... 30 more rows

Sheet D (hidden)

Sheet Info (hidden)
B3: Hvordan korrigere satser, ev. skattefrie beløp
A5: Beskyttelse | B5: Regneboken som ligger ute er beskyttet mot endring i låste felt
B6: Beskyttelsen må tas av (se makro for reiseregning)
A8: C-arket | B8: Alle satser som skal oppdateres korrigeres på side C (reiser, kjøregodtgjørelse mm)
B9: Alle formler henviser til sater i dette regnearket, så når det er oppdatert her skal det være oppdatert i hele regnearket
A11: B-arket | B11: Satser og formler for beregninger ligger også i B-arket
B12: Disse er skjult og må vises vha Vis-kommando
B13: Marker start og slutt på kolonner som er skjult, høyre-klikk og velg vis
B14: Beregner korrekt kjøregodkjørelse og plukklister for valg i listebokser
A16: Datavalidering | B16: Plukklistene er satt på vha Datavalidering
B17: Marker området hvor det står listebokser, Velg Data på filmenyen
B18: Da finner du verktøyet "Datavalidering" på dette båndet (se bilde)
A20: A-arket | B20: Dette arket inneholder også skjulte kolonner til venstre og høyre i skjemaet
B21: Disse er skjult og må vises vha Vis-kommando
B22: Beregner korrekt kostgodtgjørelse mm
A28: Før ark legges | B28: Sett på arkbeskyttelse
A29: på web | B29: Test at regnearket fungerer som det skal
